[Event "Titled Tuesday Blitz August 17 2021"]
[White "Baches Garcia, Guillermo"]
[Black "Solon, Nathan"]
[WhiteFideId "2209764"]
[BlackFideId "2017229"]
[WhiteElo "2471"]
[BlackElo "2691"]
[Result "0-1"]
[Round "02"]
[TimeControl "180+1"]
[Date "2021.08.17"]
[WhiteClock "0:00:16"]
[BlackClock "0:00:56"]

1. e4 {[%clk 0:03:00]}  c6 {[%clk 0:02:59]} 2. Nc3 {[%clk 0:02:58]}  d5 {[%clk 0:03:00]} 3. Nf3 {[%clk 0:02:58]}  Bg4 {[%clk 0:02:59]} 4. h3 {[%clk 0:02:58]}  Bxf3 {[%clk 0:03:00]} 5. Qxf3 {[%clk 0:02:58]}  e6 {[%clk 0:03:00]} 6. d4 {[%clk 0:02:55]}  Nf6 {[%clk 0:02:52]} 7. exd5 {[%clk 0:02:55]}  cxd5 {[%clk 0:02:44]} 8. Bg5 {[%clk 0:02:53]}  Be7 {[%clk 0:02:42]} 9. Bd3 {[%clk 0:02:49]}  Nc6 {[%clk 0:02:41]} 10. Ne2 {[%clk 0:02:38]}  Qb6 {[%clk 0:02:36]} 11. O-O {[%clk 0:02:30]}  Nxd4 {[%clk 0:02:28]} 12. Nxd4 {[%clk 0:02:23]}  Qxd4 {[%clk 0:02:29]} 13. Bb5+ {[%clk 0:02:15]}  Kf8 {[%clk 0:02:29]} 14. Qb3 {[%clk 0:01:50]}  Ne4 {[%clk 0:02:20]} 15. Be3 {[%clk 0:01:36]}  Qb4 {[%clk 0:02:19]} 16. c3 {[%clk 0:00:56]}  Qxb3 {[%clk 0:02:18]} 17. axb3 {[%clk 0:00:57]}  Bc5 {[%clk 0:02:17]} 18. Bf4 {[%clk 0:00:55]}  g5 {[%clk 0:02:11]} 19. Be5 {[%clk 0:00:54]}  f6 {[%clk 0:02:10]} 20. Bh2 {[%clk 0:00:54]}  Kf7 {[%clk 0:01:59]} 21. Rad1 {[%clk 0:00:50]}  h5 {[%clk 0:01:43]} 22. Bd3 {[%clk 0:00:49]}  Rad8 {[%clk 0:01:36]} 23. b4 {[%clk 0:00:46]}  Bb6 {[%clk 0:01:33]} 24. Bxe4 {[%clk 0:00:31]}  dxe4 {[%clk 0:01:34]} 25. Rfe1 {[%clk 0:00:32]}  e3 {[%clk 0:01:25]} 26. fxe3 {[%clk 0:00:31]}  Bxe3+ {[%clk 0:01:25]} 27. Kf1 {[%clk 0:00:32]}  Bb6 {[%clk 0:01:18]} 28. Ke2 {[%clk 0:00:30]}  e5 {[%clk 0:01:17]} 29. Bg1 {[%clk 0:00:28]}  Bxg1 {[%clk 0:01:15]} 30. Rxg1 {[%clk 0:00:29]}  Ke6 {[%clk 0:01:15]} 31. Ra1 {[%clk 0:00:29]}  a6 {[%clk 0:01:14]} 32. b5 {[%clk 0:00:29]}  axb5 {[%clk 0:01:12]} 33. Ra5 {[%clk 0:00:29]}  Rd5 {[%clk 0:01:11]} 34. Ra7 {[%clk 0:00:29]}  Rhd8 {[%clk 0:01:09]} 35. Rxb7 {[%clk 0:00:18]}  Rd2+ {[%clk 0:01:08]} 36. Ke1 {[%clk 0:00:18]}  Rd1+ {[%clk 0:01:07]} 37. Ke2 {[%clk 0:00:18]}  R1d2+ {[%clk 0:00:59]} 38. Kf1 {[%clk 0:00:16]}  Rxb2 {[%clk 0:00:56]} 0-1


[Site "https://www.chess.com"]

[Event "Titled Tuesday Blitz August 17 2021"]
[White "Bryakin, Mikhail"]
[Black "Krishnakumar, Sriram"]
[WhiteFideId "4165314"]
[BlackFideId "30915856"]
[WhiteElo "2336"]
[BlackElo "2336"]
[Result "0-1"]
[Round "02"]
[TimeControl "180+1"]
[Date "2021.08.18"]
[WhiteClock "0:00:17"]
[BlackClock "0:00:13"]

1. e4 {[%clk 0:02:59]}  e5 {[%clk 0:02:56]} 2. Nf3 {[%clk 0:02:58]}  Nc6 {[%clk 0:02:56]} 3. d4 {[%clk 0:02:58]}  exd4 {[%clk 0:02:54]} 4. Nxd4 {[%clk 0:02:58]}  Nf6 {[%clk 0:02:52]} 5. Nxc6 {[%clk 0:02:57]}  bxc6 {[%clk 0:02:53]} 6. Nc3 {[%clk 0:02:57]}  Bb4 {[%clk 0:02:50]} 7. Bd3 {[%clk 0:02:58]}  d5 {[%clk 0:02:50]} 8. exd5 {[%clk 0:02:58]}  cxd5 {[%clk 0:02:51]} 9. O-O {[%clk 0:02:58]}  O-O {[%clk 0:02:50]} 10. h3 {[%clk 0:02:59]}  c6 {[%clk 0:02:50]} 11. Qf3 {[%clk 0:02:59]}  Rb8 {[%clk 0:02:45]} 12. Bg5 {[%clk 0:02:59]}  Bd6 {[%clk 0:02:45]} 13. Na4 {[%clk 0:02:59]}  h6 {[%clk 0:02:44]} 14. Bh4 {[%clk 0:02:57]}  Rb4 {[%clk 0:02:39]} 15. Bxf6 {[%clk 0:02:57]}  Qxf6 {[%clk 0:02:40]} 16. Qxf6 {[%clk 0:02:57]}  gxf6 {[%clk 0:02:41]} 17. b3 {[%clk 0:02:57]}  Be6 {[%clk 0:02:35]} 18. Rad1 {[%clk 0:02:53]}  c5 {[%clk 0:02:35]} 19. Nc3 {[%clk 0:02:47]}  Be5 {[%clk 0:02:32]} 20. Ne2 {[%clk 0:02:44]}  c4 {[%clk 0:02:24]} 21. bxc4 {[%clk 0:02:43]}  dxc4 {[%clk 0:02:25]} 22. Be4 {[%clk 0:02:44]}  c3 {[%clk 0:02:23]} 23. Bd5 {[%clk 0:02:44]}  Bf5 {[%clk 0:02:23]} 24. Rb1 {[%clk 0:02:37]}  Rxb1 {[%clk 0:02:13]} 25. Rxb1 {[%clk 0:02:37]}  Bxc2 {[%clk 0:02:14]} 26. Rc1 {[%clk 0:02:38]}  Bf5 {[%clk 0:02:10]} 27. Nxc3 {[%clk 0:02:36]}  Rc8 {[%clk 0:02:01]} 28. Ne2 {[%clk 0:02:34]}  Rxc1+ {[%clk 0:01:58]} 29. Nxc1 {[%clk 0:02:34]}  Be6 {[%clk 0:01:56]} 30. Bb3 {[%clk 0:02:32]}  Kf8 {[%clk 0:01:54]} 31. Nd3 {[%clk 0:02:31]}  Bd6 {[%clk 0:01:54]} 32. Kf1 {[%clk 0:02:31]}  Ke7 {[%clk 0:01:54]} 33. Ke2 {[%clk 0:02:31]}  Kd7 {[%clk 0:01:50]} 34. Ke3 {[%clk 0:02:30]}  a5 {[%clk 0:01:45]} 35. h4 {[%clk 0:02:25]}  Kc6 {[%clk 0:01:36]} 36. g3 {[%clk 0:02:22]}  Kb5 {[%clk 0:01:34]} 37. a4+ {[%clk 0:02:03]}  Kc6 {[%clk 0:01:27]} 38. Bd1 {[%clk 0:02:04]}  Be5 {[%clk 0:01:15]} 39. f3 {[%clk 0:01:32]}  Bd5 {[%clk 0:01:09]} 40. f4 {[%clk 0:01:27]}  Bd6 {[%clk 0:01:08]} 41. Kd4 {[%clk 0:01:19]}  Bc7 {[%clk 0:01:02]} 42. g4 {[%clk 0:01:11]}  Bb6+ {[%clk 0:01:02]} 43. Kc3 {[%clk 0:01:11]}  Be3 {[%clk 0:00:58]} 44. g5 {[%clk 0:01:09]}  fxg5 {[%clk 0:00:45]} 45. hxg5 {[%clk 0:01:01]}  hxg5 {[%clk 0:00:44]} 46. fxg5 {[%clk 0:00:58]}  Bxg5 {[%clk 0:00:45]} 47. Ne5+ {[%clk 0:00:58]}  Kc5 {[%clk 0:00:38]} 48. Nf3 {[%clk 0:00:51]}  Bf6+ {[%clk 0:00:36]} 49. Kd3 {[%clk 0:00:51]}  Kb4 {[%clk 0:00:36]} 50. Nd2 {[%clk 0:00:45]}  Bg5 {[%clk 0:00:26]} 51. Ne4 {[%clk 0:00:30]}  Be7 {[%clk 0:00:21]} 52. Nd2 {[%clk 0:00:30]}  f5 {[%clk 0:00:20]} 53. Kd4 {[%clk 0:00:23]}  Bc6 {[%clk 0:00:20]} 54. Nc4 {[%clk 0:00:22]}  Bf6+ {[%clk 0:00:13]} 55. Kd3 {[%clk 0:00:20]}  Be4+ {[%clk 0:00:11]} 56. Kd2 {[%clk 0:00:16]}  Kxc4 {[%clk 0:00:12]} 57. Be2+ {[%clk 0:00:16]}  Kb4 {[%clk 0:00:13]} 58. Bb5 {[%clk 0:00:17]}  Bg5+ {[%clk 0:00:11]} 59. Ke2 {[%clk 0:00:17]}  Bd5 {[%clk 0:00:11]} 60. Kd3 {[%clk 0:00:17]}  Bb3 {[%clk 0:00:12]} 61. Kd4 {[%clk 0:00:17]}  Bxa4 {[%clk 0:00:12]} 62. Bc4 {[%clk 0:00:17]}  Bb3 {[%clk 0:00:12]} 63. Ba6 {[%clk 0:00:16]}  a4 {[%clk 0:00:13]} 64. Bd3 {[%clk 0:00:17]}  f4 {[%clk 0:00:12]} 65. Bb1 {[%clk 0:00:16]}  a3 {[%clk 0:00:13]} 66. Ke4 {[%clk 0:00:16]}  Bh6 {[%clk 0:00:12]} 67. Ba2 {[%clk 0:00:17]}  Bxa2 {[%clk 0:00:13]} 68. Kf3 {[%clk 0:00:17]}  Bd5+ {[%clk 0:00:13]} 69. Kg4 {[%clk 0:00:17]}  a2 {[%clk 0:00:13]} 0-1


[Site "https://www.chess.com"]

[Event "Titled Tuesday Blitz August 17 2021"]
[White "Carnicelli, Valerio"]
[Black "AlexOstrovskiy"]
[WhiteFideId "856185"]
[WhiteElo "2332"]
[BlackElo "2817"]
[Result "0-1"]
[Round "02"]
[TimeControl "180+1"]
[Date "2021.08.17"]
[WhiteClock "0:02:07"]
[BlackClock "0:02:07"]

1. d4 {[%clk 0:03:00]}  Nf6 {[%clk 0:02:59]} 2. c4 {[%clk 0:03:00]}  e5 {[%clk 0:02:57]} 3. dxe5 {[%clk 0:02:59]}  Ng4 {[%clk 0:02:57]} 4. Nf3 {[%clk 0:02:49]}  Bc5 {[%clk 0:02:57]} 5. e3 {[%clk 0:02:49]}  Nc6 {[%clk 0:02:57]} 6. Nc3 {[%clk 0:02:47]}  O-O {[%clk 0:02:56]} 7. Be2 {[%clk 0:02:47]}  Re8 {[%clk 0:02:55]} 8. b3 {[%clk 0:02:44]}  Ncxe5 {[%clk 0:02:55]} 9. Nxe5 {[%clk 0:02:42]}  Nxe5 {[%clk 0:02:56]} 10. Bb2 {[%clk 0:02:42]}  a5 {[%clk 0:02:56]} 11. O-O {[%clk 0:02:40]}  Ra6 {[%clk 0:02:56]} 12. Ne4 {[%clk 0:02:36]}  Ba7 {[%clk 0:02:45]} 13. Ng3 {[%clk 0:02:21]}  Rh6 {[%clk 0:02:29]} 14. f4 {[%clk 0:02:11]}  Bxe3+ {[%clk 0:02:25]} 15. Rf2 {[%clk 0:02:07]}  Qh4 {[%clk 0:02:07]} 0-1


[Site "https://www.chess.com"]

[Event "Titled Tuesday Blitz August 17 2021"]
[White "Costachi, Mihnea"]
[Black "Turner, Max N"]
[WhiteFideId "1217518"]
[BlackFideId "447722"]
[WhiteElo "2482"]
[BlackElo "2078"]
[Result "0-1"]
[Round "02"]
[TimeControl "180+1"]
[Date "2021.08.17"]
[WhiteClock "0:01:22"]
[BlackClock "0:00:14"]

1. e4 {[%clk 0:03:00]}  c5 {[%clk 0:02:55]} 2. Nc3 {[%clk 0:03:00]}  e6 {[%clk 0:02:56]} 3. g3 {[%clk 0:03:00]}  Nc6 {[%clk 0:02:54]} 4. Bg2 {[%clk 0:03:00]}  a6 {[%clk 0:02:54]} 5. f4 {[%clk 0:03:00]}  b5 {[%clk 0:02:50]} 6. Nf3 {[%clk 0:03:01]}  Bb7 {[%clk 0:02:50]} 7. O-O {[%clk 0:03:01]}  b4 {[%clk 0:02:44]} 8. Ne2 {[%clk 0:03:01]}  h5 {[%clk 0:02:41]} 9. d3 {[%clk 0:03:01]}  Nf6 {[%clk 0:02:35]} 10. h3 {[%clk 0:03:00]}  d5 {[%clk 0:02:34]} 11. e5 {[%clk 0:02:59]}  Nd7 {[%clk 0:02:34]} 12. Be3 {[%clk 0:02:58]}  d4 {[%clk 0:02:28]} 13. Bf2 {[%clk 0:02:56]}  Be7 {[%clk 0:02:27]} 14. Nd2 {[%clk 0:02:55]}  Nb6 {[%clk 0:02:18]} 15. a3 {[%clk 0:02:53]}  a5 {[%clk 0:02:16]} 16. Ne4 {[%clk 0:02:52]}  Nd5 {[%clk 0:02:15]} 17. Qd2 {[%clk 0:02:51]}  h4 {[%clk 0:02:09]} 18. g4 {[%clk 0:02:51]}  g5 {[%clk 0:02:04]} 19. axb4 {[%clk 0:02:40]}  axb4 {[%clk 0:02:00]} 20. Rxa8 {[%clk 0:02:40]}  Qxa8 {[%clk 0:01:57]} 21. fxg5 {[%clk 0:02:40]}  Nxe5 {[%clk 0:01:56]} 22. Nf4 {[%clk 0:02:38]}  Nxf4 {[%clk 0:01:15]} 23. Qxf4 {[%clk 0:02:37]}  Ng6 {[%clk 0:01:16]} 24. Qc7 {[%clk 0:02:25]}  Bd5 {[%clk 0:01:05]} 25. Be1 {[%clk 0:02:15]}  O-O {[%clk 0:00:59]} 26. Rf2 {[%clk 0:02:04]}  Rc8 {[%clk 0:00:53]} 27. Qh2 {[%clk 0:01:56]}  Qa1 {[%clk 0:00:50]} 28. Rf1 {[%clk 0:01:53]}  Qxb2 {[%clk 0:00:34]} 29. Nf6+ {[%clk 0:01:53]}  Bxf6 {[%clk 0:00:25]} 30. Bxd5 {[%clk 0:01:53]}  Be5 {[%clk 0:00:17]} 31. Qf2 {[%clk 0:01:49]}  Bf4 {[%clk 0:00:15]} 32. Bd2 {[%clk 0:01:25]}  Qxc2 {[%clk 0:00:15]} 33. Bxf4 {[%clk 0:01:24]}  Qxf2+ {[%clk 0:00:15]} 34. Rxf2 {[%clk 0:01:24]}  Nxf4 {[%clk 0:00:14]} 35. Rxf4 {[%clk 0:01:25]}  exd5 {[%clk 0:00:15]} 36. Rf6 {[%clk 0:01:22]}  b3 {[%clk 0:00:14]} 37. Rb6 {[%clk 0:01:22]}  c4 {[%clk 0:00:15]} 38. dxc4 {[%clk 0:01:21]}  dxc4 {[%clk 0:00:15]} 39. Rb8 {[%clk 0:01:22]}  Rxb8 {[%clk 0:00:14]} 0-1


[Site "https://www.chess.com"]

[Event "Titled Tuesday Blitz August 17 2021"]
[White "Cunjalo, Faris"]
[Black "Barp, Alberto"]
[WhiteFideId "14410710"]
[BlackFideId "872555"]
[WhiteElo "2234"]
[BlackElo "2229"]
[Result "1-0"]
[Round "02"]
[TimeControl "180+1"]
[Date "2021.08.17"]
[WhiteClock "0:00:18"]
[BlackClock "0:00:05"]

1. d4 {[%clk 0:03:00]}  d5 {[%clk 0:02:58]} 2. c4 {[%clk 0:03:00]}  c6 {[%clk 0:02:50]} 3. Nf3 {[%clk 0:03:00]}  Nf6 {[%clk 0:02:49]} 4. Nc3 {[%clk 0:03:00]}  a6 {[%clk 0:02:49]} 5. Qc2 {[%clk 0:03:00]}  b5 {[%clk 0:02:41]} 6. b3 {[%clk 0:02:40]}  e6 {[%clk 0:02:29]} 7. e4 {[%clk 0:02:28]}  Bb4 {[%clk 0:02:12]} 8. exd5 {[%clk 0:02:19]}  cxd5 {[%clk 0:01:58]} 9. Bd2 {[%clk 0:02:04]}  bxc4 {[%clk 0:01:51]} 10. bxc4 {[%clk 0:02:05]}  O-O {[%clk 0:01:50]} 11. c5 {[%clk 0:01:58]}  Nc6 {[%clk 0:01:14]} 12. Bd3 {[%clk 0:01:53]}  e5 {[%clk 0:00:47]} 13. dxe5 {[%clk 0:01:50]}  Ng4 {[%clk 0:00:42]} 14. O-O {[%clk 0:01:24]}  Ncxe5 {[%clk 0:00:31]} 15. Nxe5 {[%clk 0:01:18]}  Nxe5 {[%clk 0:00:32]} 16. Bxh7+ {[%clk 0:01:18]}  Kh8 {[%clk 0:00:33]} 17. Bd3 {[%clk 0:01:07]}  Bxc5 {[%clk 0:00:27]} 18. Bf4 {[%clk 0:01:00]}  Nxd3 {[%clk 0:00:20]} 19. Qxd3 {[%clk 0:01:01]}  Be6 {[%clk 0:00:20]} 20. Rad1 {[%clk 0:00:53]}  d4 {[%clk 0:00:20]} 21. Ne4 {[%clk 0:00:52]}  Bf5 {[%clk 0:00:20]} 22. Qf3 {[%clk 0:00:45]}  Bxe4 {[%clk 0:00:20]} 23. Qxe4 {[%clk 0:00:46]}  Qd7 {[%clk 0:00:19]} 24. Rd3 {[%clk 0:00:45]}  f5 {[%clk 0:00:17]} 25. Rh3+ {[%clk 0:00:42]}  Kg8 {[%clk 0:00:17]} 26. Qe2 {[%clk 0:00:43]}  Qf7 {[%clk 0:00:16]} 27. Rc1 {[%clk 0:00:41]}  Rae8 {[%clk 0:00:16]} 28. Qxa6 {[%clk 0:00:40]}  Be7 {[%clk 0:00:12]} 29. Qd3 {[%clk 0:00:21]}  Qxa2 {[%clk 0:00:09]} 30. Qxd4 {[%clk 0:00:21]}  Qe6 {[%clk 0:00:09]} 31. Re3 {[%clk 0:00:20]}  Bf6 {[%clk 0:00:09]} 32. Qd3 {[%clk 0:00:16]}  Qf7 {[%clk 0:00:04]} 33. Qxf5 {[%clk 0:00:17]}  Rxe3 {[%clk 0:00:04]} 34. Bxe3 {[%clk 0:00:18]}  g6 {[%clk 0:00:03]} 35. Qg4 {[%clk 0:00:18]}  Re8 {[%clk 0:00:04]} 36. h3 {[%clk 0:00:18]}  Kg7 {[%clk 0:00:04]} 37. Rd1 {[%clk 0:00:18]}  Re7 {[%clk 0:00:05]} 38. Rd6 {[%clk 0:00:18]}  Be5 {[%clk 0:00:04]} 39. Rc6 {[%clk 0:00:19]}  Rd7 {[%clk 0:00:05]} 40. Rxg6+ {[%clk 0:00:18]} 1-0


[Site "https://www.chess.com"]

[Event "Titled Tuesday Blitz August 17 2021"]
[White "Dahanayake, Isara Banidu"]
[Black "Kim, Yoon-Young"]
[WhiteFideId "9932631"]
[BlackFideId "30908779"]
[WhiteElo "1394"]
[BlackElo "2109"]
[Result "1-0"]
[Round "02"]
[TimeControl "180+1"]
[Date "2021.08.18"]
[WhiteClock "0:00:20"]
[BlackClock "0:00:04"]

1. e4 {[%clk 0:03:00]}  e5 {[%clk 0:02:58]} 2. Nf3 {[%clk 0:03:00]}  Nc6 {[%clk 0:02:59]} 3. Bb5 {[%clk 0:02:59]}  a6 {[%clk 0:02:58]} 4. Ba4 {[%clk 0:02:59]}  Nf6 {[%clk 0:02:58]} 5. d3 {[%clk 0:02:59]}  b5 {[%clk 0:02:55]} 6. Bb3 {[%clk 0:02:59]}  Bc5 {[%clk 0:02:55]} 7. O-O {[%clk 0:02:57]}  d6 {[%clk 0:02:50]} 8. a4 {[%clk 0:02:51]}  Rb8 {[%clk 0:02:49]} 9. Nc3 {[%clk 0:02:39]}  Bg4 {[%clk 0:02:43]} 10. Be3 {[%clk 0:02:36]}  Nd4 {[%clk 0:02:40]} 11. Bxd4 {[%clk 0:02:35]}  Bxd4 {[%clk 0:02:35]} 12. h3 {[%clk 0:02:23]}  Bh5 {[%clk 0:02:30]} 13. g4 {[%clk 0:02:18]}  Bxc3 {[%clk 0:02:09]} 14. bxc3 {[%clk 0:02:10]}  Bg6 {[%clk 0:01:52]} 15. Qe2 {[%clk 0:02:02]}  O-O {[%clk 0:01:49]} 16. Nh4 {[%clk 0:01:54]}  Nd7 {[%clk 0:01:43]} 17. Nxg6 {[%clk 0:01:53]}  hxg6 {[%clk 0:01:44]} 18. f4 {[%clk 0:01:49]}  Nc5 {[%clk 0:01:26]} 19. axb5 {[%clk 0:01:08]}  axb5 {[%clk 0:01:15]} 20. Bd5 {[%clk 0:01:08]}  Qh4 {[%clk 0:01:06]} 21. Qg2 {[%clk 0:01:03]}  Qe7 {[%clk 0:00:40]} 22. f5 {[%clk 0:01:00]}  Kh7 {[%clk 0:00:37]} 23. g5 {[%clk 0:00:54]}  gxf5 {[%clk 0:00:31]} 24. exf5 {[%clk 0:00:51]}  e4 {[%clk 0:00:15]} 25. g6+ {[%clk 0:00:43]}  Kh6 {[%clk 0:00:11]} 26. dxe4 {[%clk 0:00:32]}  Qg5 {[%clk 0:00:05]} 27. Qxg5+ {[%clk 0:00:31]}  Kxg5 {[%clk 0:00:06]} 28. gxf7 {[%clk 0:00:31]}  Rb6 {[%clk 0:00:05]} 29. Rf2 {[%clk 0:00:31]}  c6 {[%clk 0:00:05]} 30. Rg2+ {[%clk 0:00:31]}  Kf6 {[%clk 0:00:05]} 31. Ba2 {[%clk 0:00:21]}  g5 {[%clk 0:00:03]} 32. fxg6 {[%clk 0:00:21]}  Nxe4 {[%clk 0:00:04]} 33. g7 {[%clk 0:00:20]} 1-0


[Site "https://www.chess.com"]

[Event "Titled Tuesday Blitz August 17 2021"]
[White "Wagner, Dinara"]
[Black "Moroni, Luca Jr"]
[WhiteFideId "24157570"]
[BlackFideId "865834"]
[WhiteElo "2260"]
[BlackElo "2491"]
[Result "1-0"]
[Round "02"]
[TimeControl "180+1"]
[Date "2021.08.17"]
[WhiteClock "0:00:06"]
[BlackClock "0:00:01"]

1. d4 {[%clk 0:03:00]}  g6 {[%clk 0:02:59]} 2. c4 {[%clk 0:03:00]}  Bg7 {[%clk 0:03:00]} 3. Nf3 {[%clk 0:03:00]}  d6 {[%clk 0:03:01]} 4. Nc3 {[%clk 0:03:00]}  Nc6 {[%clk 0:03:01]} 5. g3 {[%clk 0:02:46]}  Bd7 {[%clk 0:03:01]} 6. Bg2 {[%clk 0:02:45]}  Qc8 {[%clk 0:03:00]} 7. h3 {[%clk 0:02:45]}  Nf6 {[%clk 0:02:59]} 8. d5 {[%clk 0:02:38]}  Na5 {[%clk 0:02:55]} 9. Qd3 {[%clk 0:02:34]}  c5 {[%clk 0:02:50]} 10. Bd2 {[%clk 0:02:19]}  b6 {[%clk 0:02:40]} 11. Rc1 {[%clk 0:02:14]}  a6 {[%clk 0:02:36]} 12. b3 {[%clk 0:02:11]}  O-O {[%clk 0:02:31]} 13. g4 {[%clk 0:02:07]}  b5 {[%clk 0:02:19]} 14. Ne4 {[%clk 0:01:51]}  bxc4 {[%clk 0:02:08]} 15. bxc4 {[%clk 0:01:51]}  Qc7 {[%clk 0:01:52]} 16. O-O {[%clk 0:01:46]}  Rab8 {[%clk 0:01:47]} 17. Nxf6+ {[%clk 0:01:39]}  Bxf6 {[%clk 0:01:46]} 18. Qa3 {[%clk 0:01:33]}  Nb7 {[%clk 0:01:22]} 19. Rb1 {[%clk 0:01:32]}  e6 {[%clk 0:01:08]} 20. dxe6 {[%clk 0:01:26]}  Bxe6 {[%clk 0:01:08]} 21. Rfc1 {[%clk 0:01:18]}  Nd8 {[%clk 0:00:56]} 22. Ba5 {[%clk 0:01:15]}  Qc8 {[%clk 0:00:53]} 23. Bc3 {[%clk 0:01:04]}  Bxc3 {[%clk 0:00:45]} 24. Qxc3 {[%clk 0:01:05]}  Nc6 {[%clk 0:00:43]} 25. Ng5 {[%clk 0:01:02]}  Nd4 {[%clk 0:00:39]} 26. Rb2 {[%clk 0:00:42]}  Rxb2 {[%clk 0:00:37]} 27. Qxb2 {[%clk 0:00:42]}  Qb8 {[%clk 0:00:36]} 28. Qd2 {[%clk 0:00:33]}  Qb4 {[%clk 0:00:34]} 29. Qd3 {[%clk 0:00:19]}  Qb2 {[%clk 0:00:29]} 30. Re1 {[%clk 0:00:20]}  Qc2 {[%clk 0:00:27]} 31. Qxc2 {[%clk 0:00:10]}  Nxc2 {[%clk 0:00:27]} 32. Rd1 {[%clk 0:00:11]}  Bxc4 {[%clk 0:00:20]} 33. Rxd6 {[%clk 0:00:11]}  Bxe2 {[%clk 0:00:20]} 34. Bd5 {[%clk 0:00:09]}  Nb4 {[%clk 0:00:16]} 35. Bb3 {[%clk 0:00:06]}  c4 {[%clk 0:00:16]} 36. Ba4 {[%clk 0:00:05]}  Rc8 {[%clk 0:00:12]} 37. Rd7 {[%clk 0:00:04]}  c3 {[%clk 0:00:10]} 38. Nxf7 {[%clk 0:00:05]}  Bb5 {[%clk 0:00:07]} 39. Nh6+ {[%clk 0:00:04]}  Kh8 {[%clk 0:00:07]} 40. Nf7+ {[%clk 0:00:03]}  Kg8 {[%clk 0:00:07]} 41. Nh6+ {[%clk 0:00:03]}  Kf8 {[%clk 0:00:07]} 42. Rf7+ {[%clk 0:00:04]}  Ke8 {[%clk 0:00:08]} 43. Bd1 {[%clk 0:00:03]}  c2 {[%clk 0:00:07]} 44. Bxc2 {[%clk 0:00:04]}  Rxc2 {[%clk 0:00:07]} 45. Rxh7 {[%clk 0:00:05]}  Rxa2 {[%clk 0:00:07]} 46. Rh8+ {[%clk 0:00:05]}  Ke7 {[%clk 0:00:07]} 47. Rh7+ {[%clk 0:00:06]}  Kf6 {[%clk 0:00:07]} 48. Rf7+ {[%clk 0:00:06]}  Kg5 {[%clk 0:00:06]} 49. Ng8 {[%clk 0:00:07]}  Bc6 {[%clk 0:00:04]} 50. Kh2 {[%clk 0:00:06]}  Bf3 {[%clk 0:00:02]} 51. Kg3 {[%clk 0:00:06]}  Bxg4 {[%clk 0:00:02]} 52. h4+ {[%clk 0:00:06]}  Kh5 {[%clk 0:00:01]} 53. Rh7# {[%clk 0:00:06]} 1-0


[Site "https://www.chess.com"]

[Event "Titled Tuesday Blitz August 17 2021"]
[White "Durarbayli, Vasif"]
[Black "Kilpatrick, Callum"]
[WhiteFideId "13402935"]
[BlackFideId "414425"]
[WhiteElo "2522"]
[BlackElo "2488"]
[Result "1-0"]
[Round "02"]
[TimeControl "180+1"]
[Date "2021.08.17"]
[WhiteClock "0:00:52"]
[BlackClock "0:00:15"]

1. d4 {[%clk 0:03:00]}  Nf6 {[%clk 0:02:57]} 2. c4 {[%clk 0:03:00]}  e6 {[%clk 0:02:57]} 3. Nf3 {[%clk 0:03:00]}  b6 {[%clk 0:02:57]} 4. g3 {[%clk 0:03:00]}  Ba6 {[%clk 0:02:57]} 5. b3 {[%clk 0:03:00]}  Bb7 {[%clk 0:02:56]} 6. Bg2 {[%clk 0:03:00]}  Bb4+ {[%clk 0:02:56]} 7. Bd2 {[%clk 0:03:00]}  a5 {[%clk 0:02:55]} 8. O-O {[%clk 0:02:59]}  O-O {[%clk 0:02:54]} 9. Qc2 {[%clk 0:02:50]}  Be4 {[%clk 0:02:51]} 10. Qb2 {[%clk 0:02:38]}  d5 {[%clk 0:02:48]} 11. Bf4 {[%clk 0:02:31]}  Bd6 {[%clk 0:02:10]} 12. Bxd6 {[%clk 0:02:28]}  Qxd6 {[%clk 0:02:06]} 13. Nc3 {[%clk 0:02:25]}  c5 {[%clk 0:01:57]} 14. dxc5 {[%clk 0:02:18]}  Qxc5 {[%clk 0:01:33]} 15. cxd5 {[%clk 0:02:14]}  exd5 {[%clk 0:01:33]} 16. Rac1 {[%clk 0:02:12]}  Qe7 {[%clk 0:01:30]} 17. Nd4 {[%clk 0:01:29]}  Na6 {[%clk 0:01:15]} 18. Nxe4 {[%clk 0:01:23]}  dxe4 {[%clk 0:01:13]} 19. Rc6 {[%clk 0:01:17]}  Rab8 {[%clk 0:00:57]} 20. Nf5 {[%clk 0:01:11]}  Qd8 {[%clk 0:00:46]} 21. Rd6 {[%clk 0:01:09]}  Nc5 {[%clk 0:00:18]} 22. Rfd1 {[%clk 0:00:54]}  Ncd7 {[%clk 0:00:15]} 23. Rxd7 {[%clk 0:00:52]} 1-0


[Site "https://www.chess.com"]

[Event "Titled Tuesday Blitz August 17 2021"]
[White "Firat, Burak"]
[Black "Bonte, Andrei-Mihai"]
[WhiteFideId "6305881"]
[BlackFideId "1210297"]
[WhiteElo "2531"]
[BlackElo "2200"]
[Result "1-0"]
[Round "02"]
[TimeControl "180+1"]
[Date "2021.08.17"]
[WhiteClock "0:00:06"]
[BlackClock "0:00:02"]

1. d4 {[%clk 0:03:00]}  e6 {[%clk 0:02:58]} 2. e4 {[%clk 0:03:00]}  d5 {[%clk 0:02:54]} 3. e5 {[%clk 0:03:00]}  c5 {[%clk 0:02:53]} 4. c3 {[%clk 0:03:01]}  b6 {[%clk 0:02:52]} 5. Bb5+ {[%clk 0:02:57]}  Bd7 {[%clk 0:02:51]} 6. Bd3 {[%clk 0:02:58]}  Nc6 {[%clk 0:02:40]} 7. Nf3 {[%clk 0:02:57]}  Rc8 {[%clk 0:02:34]} 8. a3 {[%clk 0:02:48]}  c4 {[%clk 0:02:31]} 9. Bc2 {[%clk 0:02:47]}  Na5 {[%clk 0:02:31]} 10. Nbd2 {[%clk 0:02:46]}  Nh6 {[%clk 0:02:26]} 11. h4 {[%clk 0:02:43]}  Nf5 {[%clk 0:02:17]} 12. g4 {[%clk 0:02:38]}  Ne7 {[%clk 0:02:17]} 13. h5 {[%clk 0:02:26]}  h6 {[%clk 0:02:12]} 14. Rb1 {[%clk 0:02:13]}  Nec6 {[%clk 0:02:10]} 15. Nf1 {[%clk 0:02:12]}  Be7 {[%clk 0:02:09]} 16. Ng3 {[%clk 0:02:11]}  Nb3 {[%clk 0:02:09]} 17. Be3 {[%clk 0:02:10]}  Nca5 {[%clk 0:02:07]} 18. Kf1 {[%clk 0:01:55]}  Bc6 {[%clk 0:02:06]} 19. Nd2 {[%clk 0:01:46]}  Kd7 {[%clk 0:01:51]} 20. f4 {[%clk 0:01:43]}  Nxd2+ {[%clk 0:01:46]} 21. Qxd2 {[%clk 0:01:44]}  Kc7 {[%clk 0:01:44]} 22. Kg2 {[%clk 0:01:33]}  Kb7 {[%clk 0:01:38]} 23. Rbf1 {[%clk 0:01:30]}  Ka8 {[%clk 0:01:27]} 24. f5 {[%clk 0:01:27]}  Bd7 {[%clk 0:01:24]} 25. Rf3 {[%clk 0:01:16]}  f6 {[%clk 0:01:03]} 26. exf6 {[%clk 0:01:06]}  Bxf6 {[%clk 0:01:02]} 27. fxe6 {[%clk 0:01:02]}  Bxe6 {[%clk 0:01:03]} 28. Bf5 {[%clk 0:00:57]}  Qd7 {[%clk 0:01:03]} 29. Bf4 {[%clk 0:00:45]}  Nc6 {[%clk 0:00:59]} 30. Re1 {[%clk 0:00:41]}  Bxf5 {[%clk 0:00:58]} 31. Nxf5 {[%clk 0:00:42]}  Rce8 {[%clk 0:00:55]} 32. Rfe3 {[%clk 0:00:40]}  Rxe3 {[%clk 0:00:37]} 33. Qxe3 {[%clk 0:00:41]}  Kb7 {[%clk 0:00:36]} 34. Qe6 {[%clk 0:00:35]}  Qxe6 {[%clk 0:00:32]} 35. Rxe6 {[%clk 0:00:36]}  Rf8 {[%clk 0:00:08]} 36. Kf3 {[%clk 0:00:24]}  Nd8 {[%clk 0:00:06]} 37. Rd6 {[%clk 0:00:20]}  Nf7 {[%clk 0:00:06]} 38. Rxf6 {[%clk 0:00:18]}  gxf6 {[%clk 0:00:05]} 39. Nxh6 {[%clk 0:00:18]}  Ng5+ {[%clk 0:00:06]} 40. Kg3 {[%clk 0:00:13]}  Re8 {[%clk 0:00:06]} 41. Bxg5 {[%clk 0:00:10]}  fxg5 {[%clk 0:00:05]} 42. Nf7 {[%clk 0:00:11]}  Re2 {[%clk 0:00:03]} 43. h6 {[%clk 0:00:07]}  Re7 {[%clk 0:00:02]} 44. Nxg5 {[%clk 0:00:06]} 1-0


[Site "https://www.chess.com"]